bitfinex/quotes_BTCUSD_20250903
["timestamp","ask_amount","ask_price","bid_price","bid_amount"]
[1756906438168,0.00711678,111640.0,111630.0,0.3360033]
[1756906438376,0.00404678,111640.0,111630.0,0.3380133]
[1756906439886,0.00205678,111640.0,111630.0,0.3411733]
[1756906440327,0.00205678,111640.0,111630.0,0.7421733]
[1756906440958,0.00205678,111640.0,111630.0,0.7431733]
[1756906441186,0.00205678,111640.0,111630.0,0.78190775]
[1756906441399,0.00205678,111640.0,111630.0,1.65526869]
[1756906441630,0.00205678,111640.0,111630.0,1.74918468]
[1756906442047,0.00205678,111640.0,111630.0,1.75118468]
[1756906444001,0.00205678,111640.0,111630.0,1.75102468]
[1756906444684,0.00205678,111640.0,111630.0,2.09102468]
[1756906445540,0.00205678,111640.0,111630.0,2.09126468]
[1756906446585,0.00205678,111640.0,111630.0,1.21790374]
[1756906446805,0.00205678,111640.0,111630.0,2.09126468]
[1756906447011,0.00205678,111640.0,111630.0,1.21790374]
[1756906447209,0.00205678,111640.0,111630.0,2.09126468]
[1756906452925,1e-08,111640.0,111630.0,2.09126468]
[1756906453355,1e-08,111640.0,111630.0,2.09485443]
[1756906453566,1e-08,111640.0,111630.0,1.84417961]
[1756906453804,1e-08,111640.0,111630.0,2.18431843]
[1756906454035,1e-08,111640.0,111630.0,2.23431843]
[1756906454279,1e-08,111640.0,111630.0,2.85700455]
[1756906454501,1e-08,111640.0,111630.0,2.23431843]
[1756906455452,1e-08,111640.0,111630.0,2.23231843]
[1756906455625,1e-08,111640.0,111630.0,1.60931231]
[1756906455842,1e-08,111640.0,111630.0,2.23499843]
[1756906456237,1e-08,111640.0,111630.0,2.23999843]
[1756906456443,1e-08,111640.0,111630.0,1.61731231]
[1756906456651,1e-08,111640.0,111630.0,1.61719231]
[1756906457414,1e-08,111640.0,111630.0,1.61711231]
[1756906457781,0.0002,111660.0,111650.0,0.80181733]
[1756906457900,0.00066652,111660.0,111650.0,1.38821332]
[1756906458131,0.00275652,111660.0,111650.0,1.39026332]
[1756906458332,0.00275652,111660.0,111650.0,1.79026332]
[1756906458790,0.00066652,111660.0,111650.0,1.79026332]
[1756906459048,0.0002,111670.0,111660.0,0.17911517]
[1756906459265,0.0002,111670.0,111660.0,1.23258022]
[1756906459480,0.0002,111670.0,111660.0,1.05212728]
[1756906459715,0.0002,111670.0,111660.0,1.79510728]
[1756906460429,0.0002,111670.0,111660.0,1.79212728]
[1756906460911,0.00229,111670.0,111660.0,1.01103116]
[1756906461171,0.00553,111670.0,111660.0,0.73539517]
[1756906461431,0.00553,111670.0,111660.0,0.58011517]
[1756906461913,0.00553,111670.0,111660.0,0.58211517]
[1756906462119,0.00553,111670.0,111660.0,0.73843517]
[1756906462338,0.00553,111670.0,111660.0,0.58211517]
[1756906462556,0.09744599,111670.0,111660.0,0.58211517]
[1756906462769,0.27654512,111670.0,111660.0,0.73839517]
[1756906462987,0.27654512,111670.0,111660.0,0.18211517]
[1756906463213,0.27654512,111670.0,111660.0,0.003]
[1756906463422,0.92017006,111670.0,111660.0,0.003]
[1756906463844,0.92017006,111670.0,111660.0,0.001]
[1756906464257,0.17911517,111660.0,111650.0,0.15624]
[1756906464462,0.89904728,111660.0,111640.0,0.17913272]
[1756906464675,0.09515599,111650.0,111640.0,0.33537272]
[1756906464888,0.09724599,111650.0,111640.0,0.33537272]
[1756906465744,0.00533,111650.0,111640.0,0.96010884]
[1756906465976,0.00533,111650.0,111640.0,0.33537272]
[1756906467387,0.00344,111670.0,111660.0,0.17911517]
[1756906467604,0.00344,111670.0,111660.0,0.33539517]
[1756906467605,0.0002,111670.0,111660.0,0.33539517]
[1756906467824,0.00229,111670.0,111660.0,0.33539517]
[1756906468271,0.0002,111670.0,111660.0,1.03199129]
[1756906468481,0.0002,111670.0,111660.0,1.02901129]
[1756906468700,0.0002,111670.0,111660.0,1.42901129]
[1756906468916,0.00229,111670.0,111660.0,1.42901129]
[1756906469132,0.00429,111670.0,111660.0,1.42901129]
[1756906469353,0.00629,111670.0,111660.0,1.42901129]
[1756906469577,0.0022,111670.0,111660.0,0.80632517]
[1756906469799,0.00229,111670.0,111660.0,1.42901129]
[1756906470127,0.0002,111670.0,111660.0,1.43001129]
[1756906470542,0.0002,111670.0,111660.0,1.43101129]
[1756906470944,0.00229,111670.0,111660.0,0.65204517]
[1756906471331,0.00553,111670.0,111660.0,0.80615517]
[1756906471514,0.00229,111670.0,111660.0,1.43089129]
[1756906471751,0.0002,111670.0,111660.0,1.43089129]
[1756906471963,0.0002,111670.0,111660.0,1.43387129]
[1756906472170,0.0002,111670.0,111660.0,1.43081129]
[1756906472380,0.0002,111670.0,111660.0,1.27473129]
[1756906472591,0.00229,111670.0,111660.0,0.80816517]
[1756906472803,0.0002,111670.0,111660.0,1.43085129]
[1756906473012,0.00229,111670.0,111660.0,1.27473129]
[1756906473260,0.00229,111670.0,111660.0,0.80812517]
[1756906473519,0.0002,111670.0,111660.0,1.43379129]
[1756906475122,0.0002,111670.0,111660.0,1.83527268]
[1756906476315,1e-08,111670.0,111660.0,2.17527268]
[1756906477413,1e-08,111670.0,111660.0,1.55258656]
[1756906477603,1e-08,111670.0,111660.0,2.17527268]
[1756906478156,1e-08,111670.0,111660.0,2.01919268]
[1756906478368,1e-08,111670.0,111660.0,2.17567268]
[1756906478857,1e-08,111670.0,111660.0,2.01919268]
[1756906479077,1e-08,111670.0,111660.0,2.17563268]
[1756906479297,0.00201001,111670.0,111660.0,1.39352656]
[1756906479541,0.00508001,111670.0,111660.0,0.22368057]
[1756906479764,0.00508001,111670.0,111660.0,0.33755517]
[1756906480386,0.00508001,111670.0,111660.0,0.33555517]
[1756906480594,0.18417914,111670.0,111660.0,0.33555517]
[1756906480835,0.00508001,111670.0,111660.0,0.33555517]
[1756906481627,0.27609513,111670.0,111660.0,0.33555517]
[1756906482015,0.27609513,111670.0,111660.0,0.17911517]
[1756906482230,0.27609513,111670.0,111660.0,0.33547517]
[1756906482429,0.27609513,111670.0,111660.0,0.17911517]
[1756906482640,0.27609513,111670.0,111660.0,0.15636]
[1756906482846,0.89878125,111670.0,111650.0,0.17911694]
[1756906483044,0.09498599,111660.0,111650.0,0.33551694]
[1756906483253,0.09699599,111660.0,111650.0,0.33551694]
[1756906484722,0.27611116,111660.0,111650.0,0.1564]
[1756906484923,0.27611116,111660.0,111650.0,0.33553121]
[1756906485127,0.89879728,111660.0,111640.0,0.24797272]
[1756906485335,0.00307,111650.0,111640.0,0.33565272]
[1756906485528,0.00508,111650.0,111640.0,0.33565272]
[1756906486613,0.00508,111650.0,111640.0,0.18013272]
[1756906486989,0.09699599,111650.0,111640.0,0.33673272]
[1756906487811,0.2761272,111650.0,111640.0,0.33773272]
[1756906488073,0.2761272,111650.0,111640.0,0.33666725]
[1756906488487,0.2761272,111650.0,111640.0,0.15652]
[1756906488719,0.2761272,111650.0,111640.0,0.17914725]
[1756906488928,0.2761272,111650.0,111640.0,0.1566]
[1756906489311,0.2761272,111650.0,111640.0,0.33574725]
[1756906489545,0.2761272,111650.0,111640.0,0.17914725]
[1756906490386,0.2771272,111650.0,111630.0,0.1791633]
[1756906490589,0.18214121,111650.0,111640.0,0.17914725]
[1756906490796,0.09492599,111650.0,111640.0,0.17914725]
[1756906491198,0.09899599,111650.0,111640.0,0.17914725]
[1756906491617,0.2781272,111650.0,111640.0,0.17914725]
[1756906491984,0.09899599,111650.0,111640.0,0.17914725]
[1756906492195,0.2781272,111650.0,111640.0,0.17914725]
[1756906492564,0.09899599,111650.0,111640.0,0.17914725]
[1756906492761,0.09592599,111650.0,111640.0,0.18351659]
[1756906492967,0.00401,111650.0,111640.0,0.18127725]
[1756906493174,0.00401,111650.0,111640.0,0.80692337]
[1756906493175,0.002,111650.0,111640.0,0.80692337]
[1756906493373,0.002,111650.0,111640.0,0.18423725]
[1756906493805,0.00401,111650.0,111640.0,0.18127725]
[1756906494000,0.001,111650.0,111640.0,0.18127725]
[1756906494203,0.00307001,111670.0,111660.0,0.17911517]
[1756906494406,0.096996,111670.0,111660.0,0.33575517]
[1756906495413,0.096996,111670.0,111660.0,0.33788517]
[1756906495845,0.00508001,111670.0,111660.0,0.33788517]
[1756906496888,0.00100001,111670.0,111660.0,0.33788517]
[1756906497237,0.00301001,111670.0,111660.0,0.33788517]
[1756906497443,0.00608001,111670.0,111660.0,0.17911517]
[1756906497652,0.00608001,111670.0,111660.0,0.33575517]
[1756906497834,1e-08,111670.0,111660.0,0.33788517]
[1756906498054,0.00201001,111670.0,111660.0,0.33788517]
[1756906498388,0.27609513,111670.0,111660.0,0.17911517]
[1756906498596,0.17913121,111650.0,111640.0,0.17914445]
[1756906498791,0.2710472,111650.0,111640.0,0.17914445]
[1756906498994,0.2710472,111650.0,111640.0,0.15692]
[1756906498995,0.2761272,111650.0,111640.0,0.15692]
[1756906499200,0.2761272,111650.0,111640.0,0.33606725]
[1756906499408,0.2761272,111650.0,111640.0,0.17914725]
[1756906499607,0.17914725,111640.0,111630.0,0.3360833]
[1756906499833,0.09699599,111640.0,111630.0,0.3360833]
[1756906500033,0.18220121,111650.0,111640.0,0.17914725]
[1756906500254,0.09699599,111650.0,111640.0,0.17914725]
[1756906500461,0.2761272,111650.0,111640.0,0.17914725]
[1756906500677,0.09699599,111650.0,111640.0,0.18014725]
[1756906500856,0.2761272,111650.0,111640.0,0.18014725]
[1756906501109,0.09699599,111650.0,111640.0,0.17914725]
[1756906501327,0.09699599,111650.0,111640.0,0.18127725]
[1756906501328,0.09191599,111650.0,111640.0,0.18127725]
[1756906501553,0.001,111650.0,111640.0,0.18127725]
[1756906501775,0.001,111650.0,111640.0,0.80692337]
[1756906502227,0.002,111650.0,111640.0,0.18423725]
[1756906502445,0.00401,111650.0,111640.0,0.18127725]
[1756906503312,0.002,111650.0,111640.0,0.58423725]
[1756906503547,0.002,111650.0,111640.0,1.20692337]
[1756906503794,0.001,111650.0,111640.0,1.54692337]
[1756906504035,0.001,111650.0,111640.0,1.63883936]
[1756906504478,1e-08,111670.0,111660.0,0.17911517]
[1756906504707,1e-08,111670.0,111660.0,0.80180129]
[1756906504932,1e-08,111670.0,111660.0,1.03257129]
[1756906505158,1e-08,111670.0,111660.0,1.12448728]
[1756906505387,1e-08,111670.0,111660.0,1.46448728]
[1756906505633,1e-08,111670.0,111660.0,1.51448728]
[1756906506765,1e-08,111670.0,111660.0,1.91448728]
[1756906507644,0.00028,111680.0,111670.0,0.51909913]
[1756906507645,1e-08,111680.0,111670.0,0.51909913]
[1756906507858,0.00013988,111680.0,111670.0,1.23666124]
[1756906508073,1e-08,111680.0,111670.0,1.23879124]
[1756906508295,1e-08,111680.0,111670.0,1.68879124]
[1756906508723,1e-08,111680.0,111670.0,1.75973006]
[1756906509144,1e-08,111680.0,111670.0,1.95892009]
[1756906509585,1e-08,111690.0,111680.0,0.56908309]
[1756906509895,1e-08,111690.0,111680.0,1.57303402]
[1756906510104,1e-08,111690.0,111680.0,1.73182402]
[1756906510315,1e-08,111690.0,111680.0,2.13541185]
[1756906510950,1e-08,111700.0,111690.0,0.59000588]
[1756906511161,1e-08,111700.0,111690.0,2.04930411]
[1756906511375,1e-08,111700.0,111690.0,2.05137411]
[1756906511585,1e-08,111700.0,111690.0,2.45137411]
[1756906511793,1e-08,111710.0,111700.0,0.58998984]
[1756906511999,0.0002,111720.0,111710.0,0.569035]
[1756906512000,1e-08,111720.0,111710.0,0.569035]
[1756906512218,0.00013986,111720.0,111710.0,1.44551711]
[1756906512483,1e-08,111720.0,111710.0,1.75981593]
[1756906512917,1e-08,111720.0,111710.0,1.95671218]
[1756906513327,0.0002,111750.0,111740.0,0.80167305]
[1756906513582,0.0002,111750.0,111740.0,1.36740083]
[1756906513780,0.0002,111750.0,111740.0,1.37827758]
[1756906513998,0.0002,111750.0,111740.0,1.78144758]
[1756906514225,0.0002,111750.0,111740.0,1.62143758]
[1756906514440,0.00236,111750.0,111740.0,1.77819758]
[1756906514868,0.00561,111750.0,111740.0,1.61052083]
[1756906515075,0.00561,111750.0,111740.0,0.80458693]
[1756906515576,0.00561,111750.0,111740.0,0.57898693]
[1756906515790,0.00561,111750.0,111740.0,0.73766693]
[1756906516006,0.00561,111750.0,111740.0,1.61044484]
[1756906516231,0.00561,111750.0,111740.0,1.61048484]
[1756906516443,0.00561,111750.0,111740.0,1.60848484]
[1756906516665,0.00236,111750.0,111740.0,1.65098409]
[1756906516876,0.0002,111750.0,111740.0,1.65098409]
[1756906517097,0.00236,111750.0,111740.0,1.65094409]
[1756906517314,0.00236,111750.0,111740.0,0.62141618]
[1756906517531,0.00561,111750.0,111740.0,0.77809618]
[1756906517746,0.0002,111750.0,111740.0,0.77816618]
[1756906517975,0.0002,111750.0,111740.0,1.74403008]
[1756906518400,0.0002,111750.0,111740.0,1.74086008]
[1756906518832,0.0002,111750.0,111740.0,1.74186008]
[1756906519042,0.00561,111750.0,111740.0,0.62041618]
[1756906519288,0.00561,111750.0,111740.0,0.77705618]
[1756906519496,0.00236,111750.0,111740.0,1.64783409]
[1756906519705,0.0002,111750.0,111740.0,1.74699008]
[1756906519942,0.0002,111750.0,111740.0,1.74499008]
[1756906520151,0.0002,111750.0,111740.0,1.58835008]
[1756906520358,0.0002,111750.0,111740.0,1.74944925]
[1756906520820,0.0002,111750.0,111740.0,2.09044925]
[1756906521024,0.0002,111750.0,111740.0,2.40964925]
[1756906521476,0.0002,111750.0,111740.0,2.40864925]
[1756906521688,0.0002,111750.0,111740.0,2.20204925]
[1756906521913,1e-08,111750.0,111740.0,2.41004925]
[1756906522349,1e-08,111750.0,111740.0,1.33227134]
[1756906522586,1e-08,111750.0,111740.0,2.35583925]
[1756906523007,1e-08,111750.0,111740.0,2.35683925]
[1756906523242,1e-08,111750.0,111740.0,2.36000925]
[1756906523469,1e-08,111750.0,111740.0,2.35683925]
[1756906523956,1e-08,111750.0,111740.0,2.36000925]
[1756906524197,0.00541001,111750.0,111740.0,0.78355535]
[1756906524436,0.18438092,111750.0,111740.0,0.15964]
[1756906524643,0.00541001,111750.0,111740.0,0.33862693]
[1756906524865,0.18438092,111750.0,111740.0,0.33862693]
[1756906525105,0.20700092,111750.0,111740.0,0.001]
[1756906525326,0.29891691,111750.0,111740.0,0.001]
[1756906525755,0.29891691,111750.0,111740.0,0.17998693]
[1756906525967,0.119946,111750.0,111740.0,0.17898693]
[1756906526414,0.00641001,111750.0,111740.0,0.18122426]
[1756906526625,0.18538092,111750.0,111740.0,0.33882426]
[1756906526851,0.00641001,111750.0,111740.0,0.33658693]
[1756906527736,0.18738092,111750.0,111740.0,0.33658693]
[1756906527967,0.27929691,111750.0,111740.0,0.1576]
[1756906528184,0.27829691,111750.0,111740.0,0.33658693]
[1756906528398,0.17898693,111740.0,111730.0,0.33671768]
[1756906528612,1.14709083,111740.0,111730.0,0.15772]
[1756906528836,0.17900295,111730.0,111720.0,0.73677897]
[1756906529063,0.27090292,111740.0,111730.0,0.17900295]
[1756906529282,0.09191599,111740.0,111730.0,0.17900295]
[1756906529509,0.20359092,111750.0,111740.0,0.17898693]
[1756906529736,0.10438622,111750.0,111740.0,0.33706693]
[1756906529963,0.00416001,111750.0,111740.0,0.33702693]
[1756906530180,0.01471999,111750.0,111740.0,0.33702693]
[1756906530833,0.00641001,111750.0,111740.0,0.33702693]
[1756906531318,0.01472116,111750.0,111740.0,0.17898693]
[1756906531584,1.15638597,111750.0,111730.0,0.17900277]
[1756906531792,1.15638597,111750.0,111720.0,0.73709869]
[1756906531793,0.17900295,111730.0,111720.0,0.73709869]
[1756906532014,0.18441295,111730.0,111720.0,0.57901897]
[1756906532257,0.19274317,111730.0,111710.0,0.34606675]
[1756906532686,0.27418496,111720.0,111700.0,0.48838988]
[1756906532906,0.27418496,111720.0,111700.0,0.17919087]
[1756906532907,0.181195,111710.0,111700.0,0.17919087]
[1756906533136,0.27636099,111710.0,111700.0,0.00013985]
[1756906533387,1.15548026,111710.0,111700.0,0.00013985]
[1756906533591,1.53732183,111710.0,111700.0,0.00013985]
[1756906533822,1.54357885,111710.0,111700.0,0.00013985]
[1756906534065,0.82458392,111710.0,111700.0,0.00013985]
[1756906534284,0.82458392,111710.0,111700.0,0.17919087]
[1756906534285,0.12488892,111710.0,111700.0,0.17919087]
[1756906534495,0.10566735,111710.0,111700.0,0.17919087]
[1756906534731,0.10566735,111710.0,111700.0,0.18019087]
[1756906535624,0.10566735,111710.0,111700.0,0.33835087]
[1756906535847,0.00834136,111710.0,111700.0,0.34042087]
[1756906536062,0.00325,111730.0,111720.0,0.17901897]
[1756906536275,0.28467317,111730.0,111720.0,0.17901897]
[1756906536493,0.28467317,111730.0,111720.0,0.17801897]
[1756906536732,0.28467317,111730.0,111720.0,0.17601897]
[1756906536733,0.10567022,111730.0,111720.0,0.17601897]
[1756906536945,0.01050423,111730.0,111720.0,0.33413897]
[1756906537166,0.01375423,111730.0,111720.0,0.33413897]
[1756906537608,0.01575423,111730.0,111720.0,0.33413897]
[1756906537835,0.01034423,111730.0,111720.0,0.33413897]
[1756906538137,0.01034423,111730.0,111720.0,0.33620897]
[1756906538814,0.01034423,111730.0,111720.0,0.53944897]
[1756906539029,0.004,111730.0,111720.0,0.53620897]
[1756906539476,0.00325001,111750.0,111740.0,0.17898693]
[1756906539703,0.27628691,111750.0,111740.0,0.17898693]
[1756906539920,0.28463307,111750.0,111730.0,0.17798868]
[1756906540128,0.28138307,111750.0,111740.0,0.17898693]
[1756906540318,0.27303691,111750.0,111740.0,0.17898693]
[1756906540564,0.27303691,111750.0,111730.0,0.17798868]
[1756906540795,0.17900295,111730.0,111720.0,0.201]
[1756906541018,1.14690685,111730.0,111720.0,0.201]
[1756906541234,1.16613859,111730.0,111720.0,0.201]
[1756906541445,1.16613859,111730.0,111720.0,0.2]
[1756906541902,1.53499937,111730.0,111720.0,0.2]
[1756906542096,1.73754876,111730.0,111720.0,0.2]
[1756906542360,1.73496075,111730.0,111720.0,0.2]
[1756906542578,1.80108476,111730.0,111720.0,0.2]
[1756906543263,1.8253741,111730.0,111720.0,0.2]
[1756906543481,1.8254141,111730.0,111720.0,0.2]
[1756906543661,1.8284541,111730.0,111720.0,0.2]
[1756906543866,1.6703341,111730.0,111720.0,0.2]
[1756906544089,1.62211115,111730.0,111720.0,0.2]
[1756906544298,1.78019115,111730.0,111720.0,0.2]
[1756906544507,1.77728819,111730.0,111720.0,0.2]
[1756906545369,1.74013956,111730.0,111720.0,0.2]
[1756906545599,1.58205956,111730.0,111720.0,0.2]
[1756906545810,1.65089956,111730.0,111720.0,0.2]
[1756906546017,1.78629956,111730.0,111720.0,0.2]
[1756906546449,1.7779518,111730.0,111720.0,0.2]
[1756906546669,0.17909049,111680.0,111660.0,0.41951194]
[1756906546882,0.17909913,111670.0,111660.0,0.25269604]
[1756906547112,0.27100648,111680.0,111670.0,0.17909913]
[1756906547319,0.09191599,111680.0,111670.0,0.17909913]
[1756906547535,0.27314908,111680.0,111670.0,0.17909913]
[1756906547755,0.17909913,111670.0,111660.0,0.00013985]
[1756906547975,1.30285303,111670.0,111660.0,0.00013985]
[1756906548213,1.30500303,111670.0,111660.0,0.00013985]
[1756906548433,1.30500303,111670.0,111660.0,0.00513985]
[1756906548678,1.73691902,111670.0,111660.0,0.00513985]
[1756906548898,1.87737739,111670.0,111660.0,1e-08]
[1756906549119,0.17918661,111620.0,111600.0,0.26164739]
[1756906549346,0.2711114,111610.0,111600.0,0.25275777]
[1756906549563,0.2711114,111610.0,111600.0,0.07401283]
[1756906549787,0.09191599,111610.0,111600.0,0.25322429]
[1756906550249,0.09191599,111610.0,111600.0,0.25520429]
[1756906550468,0.09191599,111610.0,111600.0,0.18165798]
[1756906550688,0.1582,111620.0,111610.0,0.17918281]
[1756906550906,0.09191599,111620.0,111610.0,0.17918281]
[1756906551106,0.25011599,111620.0,111610.0,0.17919541]
[1756906551317,0.42929534,111620.0,111610.0,0.17919541]
[1756906551741,0.42929534,111620.0,111600.0,0.19163855]
[1756906551742,0.17919541,111610.0,111600.0,0.18267336]
[1756906551934,0.09191599,111610.0,111600.0,0.18267798]
[1756906552214,0.09191599,111610.0,111600.0,0.18465798]
[1756906552424,0.09191599,111610.0,111600.0,0.18267798]
[1756906552842,0.09191599,111610.0,111600.0,0.18167798]
[1756906553501,0.09191599,111610.0,111600.0,0.17967798]
[1756906553722,0.09191599,111610.0,111600.0,0.18165798]
[1756906553929,0.2732614,111610.0,111600.0,0.00046652]
[1756906554142,0.09712599,111610.0,111600.0,0.00046652]
[1756906554355,0.2763214,111610.0,111600.0,0.17967798]
[1756906554581,0.2763214,111610.0,111600.0,0.18067798]
[1756906554794,0.09191599,111610.0,111600.0,0.18365798]
[1756906555030,0.09491599,111610.0,111600.0,0.18365798]
[1756906555245,1.16803813,111610.0,111600.0,0.00146652]
[1756906555464,1.23691813,111610.0,111600.0,0.00146652]
[1756906555682,1.61796737,111610.0,111600.0,0.00146652]
[1756906555889,1.57691813,111610.0,111600.0,0.00146652]
[1756906556319,0.70308022,111610.0,111600.0,0.17967798]
[1756906556533,0.24999599,111610.0,111600.0,0.17967798]
[1756906556744,0.2711114,111610.0,111600.0,0.17967798]
[1756906556954,0.4344014,111610.0,111600.0,0.17967798]
[1756906557170,0.4354014,111610.0,111600.0,0.17967798]
[1756906557378,0.25520599,111610.0,111600.0,0.00046652]
[1756906557598,0.4291114,111610.0,111600.0,0.17967798]
[1756906557807,0.4291114,111610.0,111600.0,0.18265798]
[1756906558017,0.09191599,111610.0,111600.0,0.18365798]
[1756906558233,0.06888,111630.0,111620.0,0.17917935]
[1756906558413,0.24995599,111630.0,111620.0,0.17917935]
[1756906559083,0.42911929,111630.0,111620.0,0.17917935]
[1756906559297,0.43126929,111630.0,111620.0,0.17917935]
[1756906559507,0.09191599,111630.0,111620.0,0.18115935]
[1756906559714,0.15804,111630.0,111620.0,0.18439935]
[1756906559898,0.15804,111630.0,111620.0,0.18115935]
[1756906560329,0.09191599,111630.0,111620.0,0.18115935]
[1756906560541,0.35815015,111650.0,111640.0,0.17914725]
[1756906560775,0.45221614,111650.0,111630.0,0.1771501]
[1756906560980,0.09191599,111640.0,111630.0,0.1771501]
[1756906561415,0.34065835,111660.0,111640.0,0.17913449]
[1756906561634,0.34065835,111660.0,111620.0,0.58813831]
[1756906561635,0.17914725,111640.0,111620.0,0.58813831]
[1756906561841,1.31196167,111650.0,111630.0,0.1781633]
[1756906562064,0.4322272,111650.0,111640.0,0.17914725]
[1756906562299,0.09191599,111650.0,111640.0,0.18112725]
[1756906562516,0.2731972,111650.0,111640.0,0.17914725]
[1756906562753,0.09191599,111650.0,111640.0,0.17914725]
[1756906562971,0.25011599,111650.0,111640.0,0.18112725]
[1756906563667,0.4344572,111650.0,111630.0,0.1791633]
[1756906563891,0.4344572,111650.0,111640.0,0.17914725]
[1756906564108,0.4292472,111650.0,111640.0,0.17914725]
[1756906564293,0.4313972,111650.0,111640.0,0.17914725]
[1756906564641,0.4313972,111650.0,111640.0,0.18014725]
[1756906564848,0.25011599,111650.0,111640.0,0.18014725]
[1756906565047,0.25011599,111650.0,111640.0,0.18212725]
[1756906565260,0.09191599,111650.0,111640.0,0.18412725]
[1756906565469,0.227,111660.0,111650.0,0.17913121]
[1756906565694,0.49803116,111660.0,111650.0,0.17913121]
[1756906565940,0.32106599,111660.0,111650.0,0.17913121]
[1756906566095,0.31891599,111660.0,111650.0,0.18111121]
[1756906566303,0.25003599,111660.0,111650.0,0.18111121]
[1756906566520,0.42915116,111660.0,111640.0,0.18214725]
[1756906566734,0.27624116,111660.0,111650.0,0.17913121]
[1756906566947,0.43432116,111660.0,111640.0,0.18214725]
[1756906567146,0.43432116,111660.0,111650.0,0.17913121]
[1756906567357,0.25520599,111660.0,111650.0,0.17913121]
[1756906567573,0.09712599,111660.0,111650.0,0.17913121]
[1756906567787,0.43432116,111660.0,111640.0,0.17914725]
[1756906568050,0.43432116,111660.0,111650.0,0.001]
[1756906568278,1.30509907,111660.0,111650.0,0.001]
[1756906568546,1.32603789,111660.0,111650.0,0.001]
[1756906568988,1.66603789,111660.0,111650.0,0.001]
[1756906569211,1.68267763,111660.0,111650.0,0.001]
[1756906569433,0.1791633,111630.0,111620.0,0.26966652]
[1756906569670,0.24995599,111630.0,111620.0,0.44884587]
[1756906569898,0.24995599,111630.0,111620.0,0.45087587]
[1756906570115,0.51915909,111650.0,111630.0,0.1791633]
[1756906570352,0.42906324,111640.0,111630.0,0.1791633]
[1756906570569,0.24991599,111640.0,111630.0,0.18637284]
[1756906570789,0.24991599,111640.0,111630.0,0.1841333]
[1756906571004,0.43120324,111640.0,111630.0,0.1791633]
[1756906571219,0.24991599,111640.0,111630.0,0.1791633]
[1756906571424,0.25205599,111640.0,111630.0,0.1791633]
[1756906571638,0.24987599,111640.0,111630.0,0.18637284]
[1756906571848,0.24987599,111640.0,111630.0,0.1841333]
[1756906572053,0.09191599,111640.0,111630.0,0.1811933]
[1756906572269,0.06888,111660.0,111650.0,0.17913121]
[1756906572468,0.50001116,111660.0,111650.0,0.17913121]
[1756906572677,0.50319116,111660.0,111640.0,0.17913287]
[1756906572888,0.09191599,111650.0,111640.0,0.18137221]
[1756906573110,0.17909967,111670.0,111660.0,0.17911517]
[1756906573316,0.45348008,111670.0,111660.0,0.17911517]
[1756906573553,0.43425566,111670.0,111650.0,0.17913121]
[1756906573770,0.27103116,111660.0,111650.0,0.17913121]
[1756906574034,0.24987599,111660.0,111650.0,0.18116121]
[1756906574273,0.25087599,111660.0,111650.0,0.18116121]
[1756906574416,0.00104655,111660.0,111650.0,1.21279912]
[1756906574624,0.00104655,111660.0,111650.0,1.61279912]
[1756906574830,0.00104655,111660.0,111650.0,1.68167912]
[1756906575031,0.00204655,111660.0,111650.0,0.41090121]
[1756906575262,0.00204655,111660.0,111650.0,0.16007]
[1756906575471,0.27839771,111660.0,111650.0,0.57913121]
[1756906575643,0.27739771,111660.0,111640.0,0.34609023]
[1756906576195,0.27639771,111660.0,111650.0,0.17913121]
[1756906576531,0.27421771,111660.0,111650.0,0.18413121]
[1756906576726,0.27739771,111660.0,111650.0,0.005]
[1756906576945,0.09296254,111660.0,111650.0,0.18616121]
[1756906577604,0.00104655,111660.0,111650.0,0.81219919]
[1756906577799,0.00104655,111660.0,111650.0,0.81519919]
[1756906578433,0.00104655,111660.0,111650.0,0.80719919]
[1756906578640,4.655e-05,111660.0,111650.0,0.80719919]
[1756906578999,4.655e-05,111660.0,111650.0,0.80819919]
[1756906579393,4.655e-05,111660.0,111650.0,0.18510121]
[1756906579597,4.655e-05,111660.0,111650.0,1.20719919]
[1756906579816,4.655e-05,111660.0,111650.0,0.58710121]
[1756906580010,4.655e-05,111660.0,111650.0,1.21019919]
[1756906580419,4.655e-05,111660.0,111650.0,0.58710121]
[1756906580848,4.655e-05,111660.0,111650.0,0.74005121]
[1756906581044,4.655e-05,111660.0,111650.0,0.74208121]
[1756906581252,4.655e-05,111660.0,111650.0,0.74508121]
[1756906581509,4.655e-05,111660.0,111650.0,0.74802121]
[1756906581671,4.655e-05,111660.0,111650.0,1.37111919]
[1756906581869,4.655e-05,111660.0,111650.0,0.74502121]
[1756906582517,4.655e-05,111660.0,111650.0,1.37011919]
[1756906582772,4.655e-05,111660.0,111650.0,1.37311919]
[1756906583103,4.655e-05,111660.0,111650.0,1.36711919]
[1756906584025,4.655e-05,111660.0,111650.0,1.37011919]
[1756906584325,4.655e-05,111660.0,111650.0,0.74702121]
[1756906584534,4.655e-05,111660.0,111650.0,0.74408121]
[1756906584747,4.655e-05,111660.0,111650.0,0.74452121]
[1756906585384,4.655e-05,111660.0,111650.0,0.58616121]
[1756906585623,0.09728254,111660.0,111650.0,0.74249121]
[1756906585842,0.27639771,111660.0,111650.0,0.34249121]
[1756906586045,0.89949569,111660.0,111650.0,0.18413121]
[1756906586254,0.09728254,111660.0,111650.0,0.18413121]
[1756906586461,0.27639771,111660.0,111640.0,0.73745287]
[1756906586670,0.27639771,111660.0,111640.0,0.17913287]
[1756906586877,0.27639771,111660.0,111640.0,0.33745287]
[1756906587089,0.27639771,111660.0,111650.0,0.18013121]
[1756906587317,0.43467771,111660.0,111650.0,0.001]
[1756906587539,1.09379567,111660.0,111650.0,0.001]
[1756906587757,1.10007256,111660.0,111650.0,0.001]
[1756906587975,1.12101329,111660.0,111650.0,0.001]
[1756906588213,1.14511768,111660.0,111650.0,0.001]
[1756906588440,1.14511768,111660.0,111650.0,0.002]
[1756906588926,0.17913121,111650.0,111640.0,0.17914713]
[1756906589147,0.93548707,111650.0,111620.0,0.25272566]
[1756906589360,1.05554122,111640.0,111630.0,0.17916228]
[1756906589576,0.09191599,111640.0,111630.0,0.17916228]
[1756906589785,0.27638437,111640.0,111630.0,0.1791633]
[1756906590013,0.11121796,111640.0,111630.0,0.1811933]
[1756906590228,0.09405599,111640.0,111630.0,0.1791633]
[1756906590447,0.27320324,111640.0,111630.0,0.1791633]
[1756906590658,0.09405599,111640.0,111630.0,0.1791633]
[1756906590886,0.09191599,111640.0,111630.0,0.1811933]
[1756906591108,0.001,111650.0,111640.0,0.17914725]
[1756906591328,0.09291599,111650.0,111640.0,0.17914725]
[1756906591541,0.29666898,111650.0,111630.0,0.3373233]
[1756906591747,1.07796696,111650.0,111640.0,0.17914725]
[1756906591970,1.07796696,111650.0,111630.0,0.3374033]